bitfinex-derivatives/quotes_SOLF0:USTF0_20241103
["timestamp","ask_amount","ask_price","bid_price","bid_amount"]
[1730645590906,5.2,159.25,159.14,3.1425]
[1730645591319,3.1418,159.19,159.11,7.9684]
[1730645591505,5.2,159.25,159.13,3.1428]
[1730645591817,5.2,159.25,159.11,7.9684]
[1730645592123,24.02,159.25,159.03,3.08478194]
[1730645592317,24.02,159.25,159.04,5.2]
[1730645592610,3.1429,159.13,159.08,3.1437]
[1730645592812,6.2796,159.29,159.05,5.12]
[1730645592813,5.12,159.18,159.05,5.12]
[1730645593211,5.12,159.18,159.11,3.1431]
[1730645593514,3.1421,159.17,159.05,5.12]
[1730645593816,5.12,159.22,159.14,3.1426]
[1730645594011,3.1418,159.19,159.14,3.1426]
[1730645594219,5.12,159.22,159.15,3.1424]
[1730645594517,22.8174,159.3,159.11,5.12]
[1730645594710,8.99988262,159.29,159.18,3.1417]
[1730645594907,3.87988262,159.28,159.12,5.6925802]
[1730645595104,3.1407,159.24,159.13,1.3866]
[1730645595299,3.9974,159.3,159.13,1.3866]
[1730645595504,18.82,159.28,159.13,1.3866]
[1730645595706,3.1407,159.24,159.13,1.3866]
[1730645595912,18.82,159.28,159.14,3.1425]
[1730645596213,5.12,159.29,159.13,1.3866]
[1730645596421,3.1413,159.21,159.16,3.142]
[1730645596610,3.1413,159.21,159.13,1.3866]
[1730645596808,5.12,159.29,159.13,1.3866]
[1730645597010,3.1411,159.22,159.13,1.3866]
[1730645597218,23.94,159.29,159.13,1.3866]
[1730645597418,3.1422,159.17,159.12,3.1429]
[1730645597607,3.1422,159.17,159.09,5.12]
[1730645598220,18.82,159.27,159.09,5.12]
[1730645598416,3.1419,159.18,159.09,5.12]
[1730645599309,3.1416,159.2,159.09,5.12]
[1730645599512,5.12,159.23,159.09,5.12]
[1730645599809,3.1414,159.21,159.16,3.1422]
[1730645600119,5.12,159.23,159.16,3.1422]
[1730645600315,3.1413,159.21,159.17,3.1419]
[1730645600518,18.82,159.29,159.09,5.12]
[1730645600719,5.12,159.28,159.09,5.12]
[1730645600908,3.141,159.23,159.09,5.12]
[1730645601113,5.12,159.28,159.09,5.12]
[1730645601315,5.12,159.28,159.18,3.1418]
[1730645601526,5.12,159.28,159.12,3.12534825]
[1730645601715,5.12,159.28,159.13,4.0735]
[1730645603712,3.1408,159.24,159.13,4.0735]
[1730645604019,5.12,159.28,159.13,4.0735]
[1730645604415,3.141,159.23,159.17,3.1419]
[1730645604620,3.141,159.23,159.13,4.0735]
[1730645604621,3.141,159.23,159.15,5.12]
[1730645605009,3.141,159.23,159.18,3.1417]
[1730645605212,5.12,159.28,159.15,5.12]
[1730645605414,3.1408,159.24,159.15,5.12]
[1730645605713,5.12,159.28,159.19,3.1415]
[1730645605915,23.94,159.28,159.05,6.2886]
[1730645606221,23.94,159.28,159.12,3.143]
[1730645606423,3.1424,159.16,159.12,3.143]
[1730645607028,3.1424,159.15,159.12,3.143]
[1730645607526,3.1424,159.15,159.11,3.1432]
[1730645607721,3.1428,159.14,159.06,9.0967]
[1730645608121,3.1426,159.15,159.11,3.1432]
[1730645608320,3.9124,159.21,159.11,3.1432]
[1730645608824,3.1426,159.15,159.11,3.1432]
[1730645609433,3.1421,159.17,159.06,9.0967]
[1730645609620,3.9124,159.21,159.06,9.0967]
[1730645610026,3.1425,159.15,159.11,3.1431]
[1730645610829,3.1425,159.15,159.12,3.143]
[1730645611028,3.9124,159.21,159.06,9.0967]
[1730645611230,3.142,159.18,159.06,9.0967]
[1730645611524,3.9124,159.21,159.06,9.0967]
[1730645613624,22.7324,159.21,159.06,2.596]
[1730645614022,3.1421,159.17,159.06,5.7401]
[1730645614228,4.82,159.16,159.06,5.7401]
[1730645614426,4.82,159.15,159.03,4.82]
[1730645614822,3.1438,159.09,159.03,4.82]
[1730645615328,3.1438,159.09,159.05,3.1442]
[1730645616026,3.1435,159.1,159.06,3.1442]
[1730645616736,4.82,159.15,159.03,4.82]
[1730645616921,4.82,159.15,159.03,7.5564]
[1730645617531,4.82,159.15,159.08,3.1438]
[1730645617725,4.82,159.15,159.03,7.5564]
[1730645618530,3.1436,159.1,159.06,3.1441]
[1730645618730,3.1436,159.1,159.03,7.5564]
[1730645619332,3.1436,159.09,159.03,7.5564]
[1730645619627,23.64,159.15,158.93,6.2935]
[1730645619935,18.82,159.13,158.92,3.9634]
[1730645620125,18.82,159.11,158.92,3.9634]
[1730645620329,3.1434,159.11,158.93,5.97576029]
[1730645620634,1.0,159.14,158.94,1.15576029]
[1730645620825,1.0,159.14,159.07,3.144]
[1730645621019,3.1434,159.11,159.07,3.144]
[1730645621225,1.0,159.14,159.02,4.0334]
[1730645621419,8.8033,159.16,159.02,4.0334]
[1730645621420,3.1433,159.11,159.02,4.0334]
[1730645622033,4.82,159.13,159.07,3.1439]
[1730645622333,23.64,159.13,158.95,4.82]
[1730645622532,23.64,159.13,158.96,4.0334]
[1730645622926,4.82,159.13,158.96,4.0334]
[1730645623322,3.1436,159.09,159.05,3.1442]
[1730645623724,4.82,159.13,158.96,4.0334]
[1730645624034,3.1436,159.1,159.05,3.1442]
[1730645624335,4.82,159.13,159.05,3.1442]
[1730645624535,3.1436,159.1,159.05,3.1442]
[1730645624727,4.82,159.13,158.96,4.0334]
[1730645626128,3.1438,159.08,159.04,3.1444]
[1730645626333,4.82,159.13,158.96,4.0334]
[1730645626537,22.8033,159.16,158.96,4.0334]
[1730645626842,4.82,159.15,158.96,4.0334]
[1730645627140,4.82,159.15,158.97,1.15545144]
[1730645627342,3.9833,159.16,158.96,4.0334]
[1730645627538,4.82,159.15,158.97,1.15543966]
[1730645628041,3.9833,159.16,158.97,1.15543966]
[1730645628237,4.82,159.15,158.96,4.0334]
[1730645628535,4.82,159.15,158.97,6.2919]
[1730645629141,3.1431,159.12,159.08,3.1437]
[1730645630538,3.1431,159.12,159.04,3.9614]
[1730645631036,4.82,159.15,159.04,3.9614]
[1730645631633,3.143,159.13,159.04,7.08843966]
[1730645632035,3.143,159.13,159.09,3.1434]
[1730645632537,3.1431,159.12,159.09,3.1434]
[1730645632944,3.1431,159.12,159.08,3.1437]
[1730645633244,3.1436,159.1,159.04,3.9614]
[1730645633542,3.9833,159.16,159.04,3.9614]
[1730645633741,4.82,159.15,159.04,3.9614]
[1730645633938,3.1434,159.11,159.04,3.9614]
[1730645634143,4.82,159.15,159.07,3.1439]
[1730645634532,4.82,159.15,159.04,3.9614]
[1730645634739,3.1439,159.08,159.05,3.1443]
[1730645635038,23.64,159.15,159.04,1.2924]
[1730645635338,29.9249,159.15,159.0,1.355]
[1730645635542,18.82,159.13,159.0,1.355]
[1730645636038,18.82,159.13,159.01,3.1451]
[1730645636039,3.1446,159.05,159.01,3.1451]
[1730645636240,3.1446,159.05,159.0,1.355]
[1730645636838,3.1442,159.07,159.0,1.355]
[1730645637230,4.82,159.1,159.0,1.355]
[1730645637435,3.1436,159.09,159.06,3.1442]
[1730645637844,3.9833,159.16,159.01,4.82]
[1730645637845,4.82,159.13,159.01,4.82]
[1730645638745,3.1431,159.12,159.01,4.82]
[1730645639241,3.1431,159.12,159.04,3.1445]
[1730645639443,3.1431,159.12,159.05,1.2974]
[1730645639851,3.1431,159.12,159.08,3.1437]
[1730645640040,4.74,159.16,159.05,1.2974]
[1730645640350,18.82,159.24,159.06,1.3558]
[1730645640551,4.74,159.23,159.07,3.12357948]
[1730645640748,8.63572914,159.22,159.07,4.74]
[1730645641052,4.74,159.22,159.08,1.2968]
[1730645641250,22.7247,159.26,159.08,1.2968]
[1730645641454,4.74,159.22,159.08,1.2968]
[1730645641952,3.9047,159.26,159.08,1.2968]
[1730645642255,3.1403,159.26,159.22,3.141]
[1730645642453,1.4023,159.3,159.15,4.74]
[1730645642646,3.90189408,159.29,159.16,4.1368]
[1730645642950,4.74,159.32,159.16,4.1368]
[1730645643141,3.90175903,159.31,159.16,4.1368]
[1730645643347,4.74,159.32,159.16,4.1368]
[1730645643348,3.14,159.28,159.16,4.1368]
[1730645644052,3.14,159.28,159.23,3.1407]
[1730645644658,4.74,159.32,159.21,3.1411]
[1730645644659,3.1404,159.26,159.21,3.1411]
[1730645644947,4.74,159.32,159.16,4.1368]
[1730645645246,3.90165692,159.31,159.16,4.1368]
[1730645645456,3.90165692,159.3,159.16,4.1368]
[1730645645647,61.49337069,159.36,159.16,4.1368]
[1730645645851,3.90466106,159.35,159.16,4.1368]
[1730645646050,61.49337069,159.36,159.16,4.1368]
[1730645646253,7.04370279,159.35,159.21,3.1411]
[1730645646454,3.1386,159.35,159.22,4.74]
[1730645646957,3.1389,159.33,159.22,4.74]
[1730645647356,61.49337069,159.36,159.22,4.74]
[1730645647555,3.9412,159.42,159.22,4.74]
[1730645647752,8.62043641,159.41,159.22,4.74]
[1730645647955,3.90043641,159.4,159.22,4.74]
[1730645648550,3.1388,159.34,159.28,3.1397]
[1730645649157,3.1379,159.39,159.33,3.1389]
[1730645649467,1.3272,159.42,159.29,2.5766]
[1730645649468,3.8991332,159.38,159.29,2.5766]
[1730645649656,1.3272,159.42,159.29,2.5766]
[1730645649858,3.1382,159.37,159.32,3.1389]
[1730645650154,3.1382,159.37,159.29,2.5766]
[1730645650361,3.1382,159.37,159.32,3.1389]
[1730645650665,1.3272,159.42,159.29,2.5766]
[1730645651058,3.1385,159.35,159.29,2.5766]
[1730645651747,3.1379,159.39,159.32,3.1389]
[1730645651960,1.3272,159.42,159.29,2.5766]
[1730645652167,3.88675942,159.41,159.29,2.5766]
[1730645652352,1.3272,159.42,159.29,2.5766]
[1730645652559,22.70341422,159.41,159.23,3.08791536]
[1730645652748,3.88341422,159.4,159.24,4.72]
[1730645652956,3.1394,159.31,159.24,4.72]
[1730645653351,3.1394,159.31,159.26,3.1401]
[1730645653664,3.1396,159.3,159.24,7.465]
[1730645653857,4.72,159.37,159.26,3.1401]
[1730645654158,3.1393,159.31,159.26,3.1401]
[1730645654671,3.1393,159.31,159.27,3.14]
[1730645654962,3.1386,159.35,159.24,7.465]
[1730645655166,4.72,159.37,159.27,3.14]
[1730645655461,4.72,159.37,159.25,1.2938]
[1730645655761,3.1394,159.31,159.26,3.1401]
[1730645656065,3.1396,159.3,159.24,2.745]
[1730645656458,4.72,159.37,159.25,3.1403]
[1730645656757,3.1395,159.31,159.24,2.745]
[1730645656958,3.1395,159.31,159.26,3.1402]
[1730645657156,4.72,159.37,159.26,3.1402]
[1730645657359,4.72,159.37,159.24,2.745]
[1730645657551,3.87977513,159.36,159.25,3.1404]
[1730645657757,4.72,159.37,159.24,2.745]
[1730645658060,3.1394,159.31,159.26,3.1401]
[1730645658264,4.72,159.37,159.26,3.1401]
[1730645658452,4.72,159.37,159.24,2.745]
[1730645658660,3.1394,159.31,159.24,4.0283]
[1730645658859,4.72,159.37,159.24,4.0283]
[1730645659058,3.1389,159.34,159.26,3.1401]
[1730645659269,3.1389,159.34,159.24,4.0283]
[1730645659270,4.72,159.37,159.24,4.0283]
[1730645659964,23.54,159.37,159.24,4.0283]
[1730645660164,23.54,159.37,159.24,1.3328]
[1730645660364,3.14,159.28,159.24,1.3328]
[1730645661067,2.5891,159.35,159.26,3.1401]
[1730645661068,3.1396,159.3,159.26,3.1401]
[1730645661262,2.5891,159.35,159.26,3.1401]
[1730645661459,1.2758,159.34,159.26,3.1401]
[1730645661956,1.2758,159.34,159.24,1.3328]
[1730645662161,1.2758,159.34,159.24,3.1405]
[1730645662162,3.1401,159.27,159.24,3.1405]
[1730645662357,4.72,159.31,159.17,6.0872]
[1730645662664,3.1406,159.25,159.21,3.1412]
[1730645662869,23.54,159.31,159.17,6.0872]
[1730645663065,23.54,159.31,159.16,2.6584]
[1730645663066,23.54,159.31,159.13,4.72]
[1730645663372,3.1419,159.18,159.15,3.1423]
[1730645663567,18.82,159.29,159.13,4.72]
[1730645663568,4.72,159.24,159.13,4.72]
[1730645664269,3.1415,159.2,159.16,3.1422]
[1730645664468,4.72,159.24,159.13,4.72]
[1730645665174,3.1411,159.22,159.13,4.72]
[1730645665677,3.1411,159.22,159.18,3.1417]
[1730645665859,21.93219107,159.32,159.07,3.13898516]
[1730645666063,18.82,159.3,159.15,3.1424]
[1730645666268,18.82,159.28,159.15,3.1424]
[1730645666474,3.1419,159.18,159.15,3.1424]
[1730645667068,3.1419,159.18,159.14,3.1426]
[1730645667376,4.72,159.23,159.09,1.2796]
[1730645667567,4.72,159.23,159.11,3.1432]
[1730645667568,23.54,159.23,159.11,3.1432]
[1730645667771,23.54,159.23,159.09,1.2796]
[1730645668280,4.72,159.23,159.09,1.2796]
[1730645668860,3.1413,159.21,159.15,3.1424]
[1730645669173,1.3265,159.26,159.09,1.2796]
[1730645669174,4.72,159.22,159.09,1.2796]
[1730645669379,3.1415,159.2,159.16,3.142]
[1730645670078,1.3265,159.26,159.13,4.62]
[1730645670282,5.9465,159.26,159.13,4.62]
[1730645670775,3.1407,159.24,159.2,3.1414]
[1730645670960,5.9465,159.26,159.13,4.62]
[1730645671665,5.9465,159.26,159.1,4.62]
[1730645671868,24.7665,159.26,159.1,4.62]
[1730645672479,5.9465,159.26,159.1,4.62]
[1730645672972,24.7665,159.26,159.15,3.1423]
[1730645673172,24.7665,159.26,159.1,4.62]
[1730645673673,24.7665,159.26,159.14,3.1426]
[1730645674068,3.1418,159.19,159.15,3.1424]
[1730645675270,3.142,159.18,159.14,3.1424]
[1730645676174,3.1417,159.19,159.1,4.62]
[1730645676673,3.1417,159.19,159.15,3.1423]
[1730645677175,24.7665,159.26,159.12,3.1429]
[1730645677681,3.1424,159.16,159.12,3.1429]
[1730645678081,18.82,159.24,159.12,3.1429]
[1730645678271,3.1425,159.15,159.12,3.1429]
[1730645678470,4.62,159.2,159.09,4.4231]
[1730645678679,3.1429,159.13,159.08,2.6767]
[1730645679178,3.1429,159.13,159.09,3.1435]
[1730645679491,2.6126,159.19,159.08,2.6767]
[1730645679778,2.6126,159.19,159.11,3.1432]
[1730645680169,3.1426,159.14,159.11,3.1432]
[1730645681267,1.2799,159.18,159.08,3.1436]
[1730645681466,1.2799,159.18,159.06,4.56827492]
[1730645681670,3.143,159.13,159.09,3.1435]
[1730645682273,3.143,159.12,159.09,3.1435]
[1730645682476,3.143,159.12,159.07,3.21383545]
[1730645682880,3.1432,159.11,159.06,1.3733]
[1730645683080,1.2799,159.18,159.07,3.1438]
[1730645683279,1.2799,159.18,159.06,1.3733]
[1730645683472,1.2799,159.18,159.04,3.08935591]
[1730645683667,1.2799,159.18,159.02,1.2859]
[1730645683880,1.2799,159.18,159.02,5.9059]
[1730645684184,3.1438,159.09,159.05,3.1442]
[1730645684381,3.1438,159.09,159.03,3.09901178]
[1730645684781,3.1434,159.11,159.07,3.1438]
[1730645684988,4.62,159.14,159.07,3.1438]
[1730645685283,1.2799,159.18,159.08,3.1438]
[1730645685284,4.62,159.15,159.08,3.1438]
[1730645685587,4.62,159.15,159.02,5.9059]
[1730645685973,4.62,159.15,159.02,9.10239465]
[1730645686175,4.62,159.15,159.02,4.48239465]
[1730645686376,3.1439,159.08,159.04,3.1445]
[1730645686575,3.1439,159.08,159.02,4.48239465]
[1730645686976,3.1439,159.08,159.04,3.1444]
[1730645687182,3.1439,159.08,159.02,4.48239465]
[1730645688187,3.1439,159.08,159.04,3.1445]
[1730645688772,3.1441,159.07,159.04,3.1445]
[1730645689084,23.44,159.15,159.01,1.3703]
[1730645689388,3.144,159.08,159.02,3.11756497]
[1730645689705,1.2799,159.18,159.01,1.3703]
[1730645689888,4.62,159.17,159.01,1.3703]
[1730645690681,3.143,159.12,159.01,1.3703]
[1730645690987,3.143,159.12,159.02,1.15514102]
[1730645691186,4.62,159.17,159.03,1.3481]
[1730645691482,4.62,159.17,159.04,4.62]
[1730645691673,4.62,159.22,159.05,1.15491]
[1730645691870,4.62,159.22,159.05,6.2887]
[1730645692075,4.62,159.22,159.04,5.9221]
[1730645692278,65.46962398,159.21,159.04,5.9221]
[1730645692577,3.1424,159.15,159.04,5.9221]
[1730645692777,65.46962398,159.21,159.04,5.9221]
[1730645692981,3.143,159.13,159.04,5.9221]
[1730645693578,3.143,159.13,159.09,3.1435]
[1730645695089,3.1429,159.13,159.09,3.1436]
[1730645695289,84.28962398,159.21,159.04,5.9221]
[1730645695687,3.1431,159.12,159.08,3.1437]
[1730645695983,22.7407,159.21,159.04,5.9221]
[1730645696582,3.1429,159.13,159.09,3.1435]
[1730645696882,3.9207,159.21,159.04,5.9221]
[1730645697198,3.1428,159.14,159.1,3.1433]
[1730645698187,3.9207,159.21,159.1,3.19077467]
[1730645698491,2.6084,159.21,159.14,3.1425]
[1730645698689,3.1419,159.18,159.13,3.19171775]
[1730645698874,61.53946708,159.24,159.11,2.7773]
[1730645699080,61.53946708,159.24,159.12,1.3214]
[1730645699285,3.141,159.23,159.12,4.39177401]
[1730645699584,3.141,159.23,159.19,3.1415]
[1730645700185,2.689,159.29,159.15,4.36]
[1730645700383,5.6491,159.29,159.15,4.36]
[1730645700881,4.36,159.32,159.15,4.36]
[1730645701286,3.1401,159.27,159.22,3.141]
[1730645701477,4.36,159.32,159.22,3.141]
[1730645701679,4.36,159.32,159.21,4.36]
[1730645702089,3.87924855,159.31,159.17,4.36]
[1730645702292,4.36,159.32,159.12,4.39177401]
[1730645702593,3.87942498,159.31,159.13,4.36]
[1730645702794,3.1412,159.22,159.18,3.1418]
[1730645702983,4.36,159.21,158.97,6.2917]
[1730645703290,4.36,159.21,159.05,1.4106]
[1730645703291,24.4949,159.2,159.05,1.4106]
[1730645703486,3.1436,159.1,159.05,1.4106]
[1730645703993,3.1434,159.11,159.06,3.1441]
[1730645704291,4.36,159.14,159.06,3.1441]
[1730645705190,3.1438,159.09,159.05,4.555]
[1730645705390,4.36,159.14,159.05,1.4106]
[1730645706690,3.1433,159.11,159.07,3.144]
[1730645708394,3.1427,159.14,159.1,3.1433]
[1730645708580,4.36,159.16,159.05,1.4106]
[1730645708896,3.1422,159.16,159.12,3.1429]
[1730645709075,4.36,159.18,159.05,1.4106]
[1730645710386,5.6749,159.2,159.05,1.4106]
[1730645710987,3.1426,159.15,159.1,3.1432]
[1730645711896,65.89351407,159.26,159.11,4.36]
[1730645712084,65.89351407,159.26,159.12,1.3462]
[1730645712280,3.1412,159.22,159.12,1.3462]
[1730645712485,4.36,159.26,159.19,3.1416]
[1730645712684,3.9294,159.27,159.13,1.2878]
[1730645712879,4.36,159.29,159.13,1.2878]
[1730645713190,4.36,159.31,159.22,3.1409]
[1730645713587,3.1402,159.27,159.22,3.1409]
[1730645713794,4.36,159.31,159.22,3.1409]
[1730645713996,4.36,159.31,159.19,1.3155]
[1730645714384,4.36,159.31,159.21,3.1412]
[1730645714586,3.141,159.23,159.13,1.2878]
[1730645714791,4.36,159.26,159.14,5.6465]
[1730645714993,4.36,159.26,159.14,1.2865]
[1730645715192,4.36,159.26,159.13,1.2878]
[1730645715500,4.36,159.26,159.11,4.36]
[1730645715798,4.36,159.26,159.07,5.6465]
[1730645716000,3.87067359,159.25,159.07,5.6465]
[1730645716199,22.69067359,159.24,159.07,5.6465]
[1730645716398,22.69067359,159.23,159.07,1.2865]
[1730645716594,3.87067359,159.22,159.07,1.2865]
[1730645716794,8.23067359,159.21,159.08,3.1437]
[1730645716991,4.36,159.21,159.08,3.1437]
[1730645717299,23.18,159.21,159.06,3.144]
[1730645717598,3.86912154,159.2,159.03,2.6309]
[1730645717790,3.86799399,159.19,159.03,2.6309]
[1730645717991,3.86799399,159.18,159.01,4.36]
[1730645719304,18.82,159.2,159.01,4.36]
[1730645719497,18.82,159.2,159.05,3.1444]
[1730645719711,22.68935194,159.19,159.05,3.1444]
[1730645719913,3.86935194,159.18,159.0,8.73923926]
[1730645720091,3.1436,159.1,159.04,3.1444]
[1730645720404,3.1436,159.1,159.0,8.73923926]
[1730645720596,4.36,159.13,159.07,3.1438]
[1730645720899,4.36,159.13,159.0,8.73923926]
[1730645721104,4.36,159.15,159.09,3.1434]
[1730645721901,4.36,159.15,159.0,8.73923926]
[1730645722408,3.1432,159.11,159.0,8.73923926]
[1730645722710,4.36,159.15,159.0,8.73923926]
[1730645722899,2.6241,159.14,159.0,8.73923926]
[1730645723096,2.6241,159.14,159.07,3.1439]
[1730645723993,3.1434,159.11,159.07,3.1439]
[1730645724507,2.6241,159.14,159.0,8.73923926]
[1730645724705,3.9177,159.14,159.0,8.73923926]
[1730645724899,3.1438,159.09,159.05,3.1443]
[1730645725101,3.9177,159.14,159.0,8.73923926]
[1730645725506,3.1439,159.08,159.0,8.73923926]
[1730645725703,3.9177,159.14,159.0,1.2865]
[1730645725902,3.1449,159.03,158.99,3.1455]
[1730645726104,3.1449,159.03,158.92,1.4087]
[1730645726105,4.36,159.03,158.92,1.4087]
[1730645726499,3.1457,158.99,158.95,3.1463]
[1730645727696,3.1451,159.02,158.92,4.60479275]
[1730645727900,4.36,159.03,158.92,4.60479275]
[1730645728306,3.1452,159.02,158.97,3.1458]
[1730645728502,4.36,159.03,158.92,4.60479275]
[1730645728906,4.36,159.03,158.96,3.146]
[1730645728907,3.1455,159.0,158.96,3.146]
[1730645729810,4.36,159.03,158.92,1.4087]
[1730645729998,4.36,159.03,158.95,3.1462]
[1730645730407,3.1457,158.99,158.95,3.1462]
[1730645730611,4.36,159.03,158.92,1.4087]
[1730645731104,3.1456,158.99,158.95,3.1462]
[1730645731410,4.36,159.03,158.92,1.4087]
[1730645731612,3.1455,159.0,158.96,3.146]
[1730645732314,3.1455,159.0,158.97,3.146]
[1730645732503,3.1455,159.0,158.92,1.4087]
[1730645732805,4.36,159.03,158.92,4.61833144]
[1730645733006,3.1453,159.01,158.97,3.1458]
[1730645733305,4.36,159.03,158.97,3.1458]
[1730645733508,3.1454,159.0,158.97,3.1458]
[1730645733707,61.59320583,159.1,158.92,4.58372116]
[1730645733708,80.41320583,159.1,158.92,4.58372116]
[1730645733915,26.96488561,159.09,158.93,5.6926]
[1730645734116,3.1457,158.99,158.93,5.6926]
[1730645734304,4.28,159.03,158.93,5.6926]
[1730645734712,4.28,159.03,158.92,1.4087]
[1730645734915,4.28,159.03,158.89,1.4126]
[1730645735413,4.28,159.03,158.93,3.1466]
[1730645735609,3.146,158.97,158.89,1.4126]
[1730645736108,4.28,159.03,158.93,3.1466]
[1730645736512,4.28,159.03,158.89,1.4126]
[1730645737117,4.28,159.03,158.93,3.1466]
[1730645737416,3.1461,158.97,158.93,3.1466]
[1730645737615,3.1461,158.97,158.91,3.1471]
[1730645737916,4.28,159.03,158.76,9.4504]
[1730645737917,4.3,158.98,158.76,9.4504]
[1730645738106,4.3,158.97,158.82,8.3599]
[1730645738302,4.3,158.96,158.9,3.1474]
[1730645738703,3.1467,158.94,158.9,3.1474]
[1730645739001,4.3,158.96,158.9,3.1474]
[1730645739210,3.1465,158.95,158.9,3.1474]
[1730645739409,4.3,158.96,158.9,3.1474]
[1730645739714,18.82,159.05,158.92,3.1468]
[1730645739715,4.3,158.97,158.92,3.1468]
[1730645739924,4.3,158.98,158.92,3.1468]
[1730645740107,18.82,159.05,158.82,11.57401947]
[1730645740108,4.3,158.99,158.95,3.1464]
[1730645740313,4.3,159.0,158.95,3.1464]
[1730645740612,4.3,159.0,158.91,3.20434657]
[1730645740811,4.3,159.0,158.94,3.1465]
[1730645741207,3.1459,158.98,158.94,3.1465]
[1730645741614,4.3,159.0,158.94,3.1465]
[1730645741810,3.1457,158.99,158.94,3.1465]
[1730645742015,4.3,159.0,158.94,3.1465]
[1730645742221,4.3,159.01,158.97,3.146]
[1730645742619,4.3,159.02,158.97,3.146]
[1730645742925,4.3,159.02,158.93,3.19378578]
[1730645743118,3.1456,158.99,158.93,3.19378578]
[1730645743324,3.1456,158.99,158.96,3.1461]
[1730645745918,3.1455,159.0,158.96,3.146]
[1730645748112,3.1454,159.01,158.96,3.146]
[1730645748312,4.3,159.02,158.96,3.146]
[1730645748705,3.1454,159.01,158.96,3.146]
[1730645748912,4.3,159.02,158.96,3.146]
[1730645749113,4.3,159.02,158.97,3.1459]
[1730645749416,3.9472,159.06,158.93,3.19378578]
[1730645749610,4.3,159.05,158.92,2.694]
[1730645750119,4.3,159.06,159.01,3.1451]
[1730645750517,3.1431,159.12,159.08,3.1436]
[1730645750713,2.6645,159.21,159.03,3.14450119]
[1730645750914,4.3,159.17,159.04,2.5724]
[1730645751117,3.85428152,159.16,159.04,2.5724]
[1730645751808,3.1435,159.1,159.06,3.1441]
[1730645752217,3.1439,159.08,159.04,5.7168]
[1730645752416,4.3,159.12,159.04,2.5724]
[1730645752913,4.3,159.12,159.05,3.1443]
[1730645752914,3.1437,159.09,159.05,3.1443]
[1730645753219,4.3,159.12,159.05,3.1443]
[1730645754322,3.1438,159.09,159.05,3.1443]
[1730645754518,23.12,159.12,159.02,3.1449]
[1730645754710,23.12,159.12,159.0,3.11257543]
[1730645754711,2.6288,159.11,159.0,3.11257543]
[1730645755023,2.6288,159.11,159.01,1.4155]
[1730645755419,3.1443,159.06,159.01,1.4155]
[1730645755820,3.1443,159.06,159.02,3.1449]
[1730645756213,3.1443,159.06,159.03,3.1448]
[1730645756812,3.1443,159.06,159.02,3.1449]
[1730645757118,2.6288,159.11,158.97,4.3]
[1730645757324,2.6288,159.11,158.98,1.4027]
[1730645757625,2.6288,159.11,159.02,3.145]
[1730645757820,2.6288,159.11,158.98,1.4027]
[1730645758022,3.144,159.08,159.04,3.1445]
[1730645758527,3.1441,159.07,159.04,3.1445]